[Event "Rapid Tournament (RAP)"]
[Site "Biel, Switzerland"]
[Date "2026.07.12"]
[Round "6.4"]
[White "Ganguly, Surya Shekhar"]
[Black "Cao, Qingfeng"]
[Result "1-0"]
[TimeControl "15 + 5"]
[WhiteTitle "-"]
[BlackTitle "-"]
[WhiteFideId "5002150"]
[BlackFideId "8627568"]
[WhiteElo "2545"]
[BlackElo "2265"]

1. Nf3 {[%clk 00:15:07]} {[%emt 00:00:02]} Nf6 {[%clk 00:15:07]} {[%emt
00:00:03]} 2. c4 {[%clk 00:15:11]} {[%emt 00:00:02]} b6 {[%clk 00:15:09]}
{[%emt 00:00:03]} 3. g3 {[%clk 00:15:10]} {[%emt 00:00:06]} c5 {[%clk
00:15:09]} {[%emt 00:00:04]} 4. Bg2 {[%clk 00:15:10]} {[%emt 00:00:05]} Bb7
{[%clk 00:15:12]} {[%emt 00:00:02]} 5. Nc3 {[%clk 00:15:11]} {[%emt 00:00:04]}
g6 {[%clk 00:15:11]} {[%emt 00:00:07]} 6. O-O {[%clk 00:15:12]} {[%emt
00:00:05]} Bg7 {[%clk 00:15:14]} {[%emt 00:00:02]} 7. Re1 {[%clk 00:15:03]}
{[%emt 00:00:13]} Nc6 {[%clk 00:14:22]} {[%emt 00:00:57]} 8. e4 {[%clk
00:14:08]} {[%emt 00:01:00]} d6 {[%clk 00:11:50]} {[%emt 00:02:37]} 9. d4
{[%clk 00:13:09]} {[%emt 00:01:05]} Nxd4 {[%clk 00:11:47]} {[%emt 00:00:08]} 10.
Nxd4 {[%clk 00:13:10]} {[%emt 00:00:04]} cxd4 {[%clk 00:11:50]} {[%emt
00:00:02]} 11. Qxd4 {[%clk 00:13:11]} {[%emt 00:00:04]} O-O {[%clk 00:11:42]}
{[%emt 00:00:13]} 12. Qd2 {[%clk 00:12:46]} {[%emt 00:00:30]} Qc8 {[%clk
00:10:01]} {[%emt 00:01:45]} 13. b3 {[%clk 00:11:07]} {[%emt 00:01:45]} b5
{[%clk 00:08:19]} {[%emt 00:01:47]} 14. Rb1 {[%clk 00:11:03]} {[%emt 00:00:09]}
bxc4 {[%clk 00:07:48]} {[%emt 00:00:36]} 15. bxc4 {[%clk 00:11:06]} {[%emt
00:00:02]} Rb8 {[%clk 00:07:37]} {[%emt 00:00:16]} 16. Nd5 {[%clk 00:07:48]}
{[%emt 00:03:23]} Nxd5 {[%clk 00:06:27]} {[%emt 00:01:15]} 17. exd5 {[%clk
00:07:51]} {[%emt 00:00:02]} Qc7 {[%clk 00:05:51]} {[%emt 00:00:41]} 18. Qe3
{[%clk 00:05:48]} {[%emt 00:02:08]} Ba6 {[%clk 00:05:51]} {[%emt 00:00:06]} 19.
Rxb8 {[%clk 00:05:46]} {[%emt 00:00:07]} Rxb8 {[%clk 00:05:42]} {[%emt
00:00:13]} 20. c5 {[%clk 00:05:32]} {[%emt 00:00:18]} dxc5 {[%clk 00:04:42]}
{[%emt 00:01:05]} 21. Qa3 {[%clk 00:04:10]} {[%emt 00:01:27]} Rb6 {[%clk
00:04:04]} {[%emt 00:00:43]} 22. Bf4 {[%clk 00:04:06]} {[%emt 00:00:10]} Qc8
{[%clk 00:03:39]} {[%emt 00:00:31]} 23. h4 {[%clk 00:04:04]} {[%emt 00:00:07]}
Bf6 {[%clk 00:03:35]} {[%emt 00:00:09]} 24. Be3 {[%clk 00:04:05]} {[%emt
00:00:03]} Rb4 {[%clk 00:03:16]} {[%emt 00:00:24]} 25. Rc1 {[%clk 00:03:37]}
{[%emt 00:00:32]} Bb2 {[%clk 00:03:02]} {[%emt 00:00:19]} 26. Qxb4 {[%clk
00:03:22]} {[%emt 00:00:20]} cxb4 {[%clk 00:03:05]} {[%emt 00:00:02]} 27. Rxc8+
{[%clk 00:03:26]} {[%emt 00:00:02]} Bxc8 {[%clk 00:03:09]} {[%emt 00:00:01]} 28.
Bxa7 {[%clk 00:03:30]} {[%emt 00:00:01]} Be5 {[%clk 00:02:54]} {[%emt
00:00:19]} 29. Bf1 {[%clk 00:03:15]} {[%emt 00:00:19]} Bf5 {[%clk 00:02:24]}
{[%emt 00:00:36]} 30. f4 {[%clk 00:03:00]} {[%emt 00:00:20]} Bd6 {[%clk
00:02:19]} {[%emt 00:00:10]} 31. Kf2 {[%clk 00:03:04]} {[%emt 00:00:02]} Kf8
{[%clk 00:02:14]} {[%emt 00:00:09]} 32. Ke3 {[%clk 00:03:05]} {[%emt 00:00:03]}
Ke8 {[%clk 00:01:24]} {[%emt 00:00:56]} 33. Bb5+ {[%clk 00:02:23]} {[%emt
00:00:47]} Kd8 {[%clk 00:01:14]} {[%emt 00:00:16]} 34. Bb6+ {[%clk 00:02:27]}
{[%emt 00:00:02]} Bc7 {[%clk 00:01:07]} {[%emt 00:00:12]} 35. Bc5 {[%clk
00:02:16]} {[%emt 00:00:15]} Bd6 {[%clk 00:01:05]} {[%emt 00:00:07]} 36. Kd4
{[%clk 00:02:07]} {[%emt 00:00:15]} Kc7 {[%clk 00:01:02]} {[%emt 00:00:08]} 37.
Ba4 {[%clk 00:02:05]} {[%emt 00:00:07]} Bc8 {[%clk 00:00:12]} {[%emt 00:00:55]}
38. Kc4 {[%clk 00:01:57]} {[%emt 00:00:12]} Bb7 {[%clk 00:00:14]} {[%emt
00:00:04]} 39. Bb3 {[%clk 00:01:53]} {[%emt 00:00:09]} Bxc5 {[%clk 00:00:08]}
{[%emt 00:00:11]} 40. Kxc5 {[%clk 00:01:56]} f6 {[%clk 00:00:10]} {[%emt
00:00:03]} 41. Kxb4 {[%clk 00:01:25]} {[%emt 00:00:37]} Kb6 {[%clk 00:00:10]}
{[%emt 00:00:05]} 42. a4 {[%clk 00:01:22]} {[%emt 00:00:07]} h6 {[%clk
00:00:13]} {[%emt 00:00:02]} 43. a5+ {[%clk 00:01:22]} {[%emt 00:00:05]} Kc7
{[%clk 00:00:17]} 44. Kc5 {[%clk 00:01:25]} {[%emt 00:00:02]} g5 {[%clk
00:00:20]} {[%emt 00:00:02]} 45. Bc4 {[%clk 00:01:20]} {[%emt 00:00:10]} gxh4
{[%clk 00:00:22]} {[%emt 00:00:03]} 46. gxh4 {[%clk 00:01:24]} Bc8 {[%clk
00:00:11]} {[%emt 00:00:16]} 47. Bb5 {[%clk 00:01:22]} {[%emt 00:00:07]} Bb7
{[%clk 00:00:09]} {[%emt 00:00:07]} 48. a6 {[%clk 00:01:15]} {[%emt 00:00:12]}
Bc8 {[%clk 00:00:12]} {[%emt 00:00:01]} 49. a7 {[%clk 00:01:19]} {[%emt
00:00:02]} Kb7 {[%clk 00:00:06]} {[%emt 00:00:11]} 50. Ba6+ {[%clk 00:01:22]}
{[%emt 00:00:01]} 1-0

[Event "Rapid Tournament (RAP)"]
[Site "Biel, Switzerland"]
[Date "2026.07.12"]
[Round "6.5"]
[White "Kozak, Adam"]
[Black "Shukhman, Anna"]
[Result "1-0"]
[TimeControl "15 + 5"]
[WhiteTitle "-"]
[BlackTitle "-"]
[WhiteFideId "753246"]
[BlackFideId "54180058"]
[WhiteElo "2592"]
[BlackElo "2272"]

1. Nf3 {[%clk 00:15:07]} {[%emt 00:00:02]} Nf6 {[%clk 00:15:06]} {[%emt
00:00:05]} 2. b3 {[%clk 00:15:11]} {[%emt 00:00:01]} d5 {[%clk 00:15:03]}
{[%emt 00:00:09]} 3. Bb2 {[%clk 00:15:14]} {[%emt 00:00:02]} c5 {[%clk
00:15:01]} {[%emt 00:00:06]} 4. e3 {[%clk 00:15:14]} {[%emt 00:00:05]} a6
{[%clk 00:15:04]} {[%emt 00:00:03]} 5. c4 {[%clk 00:15:07]} {[%emt 00:00:12]}
Nc6 {[%clk 00:14:59]} {[%emt 00:00:10]} 6. cxd5 {[%clk 00:14:19]} {[%emt
00:00:52]} Nxd5 {[%clk 00:15:02]} {[%emt 00:00:02]} 7. Nc3 {[%clk 00:14:22]}
{[%emt 00:00:02]} Nxc3 {[%clk 00:13:58]} {[%emt 00:01:10]} 8. Bxc3 {[%clk
00:14:24]} {[%emt 00:00:02]} Bg4 {[%clk 00:13:55]} {[%emt 00:00:08]} 9. h3
{[%clk 00:14:03]} {[%emt 00:00:26]} Bh5 {[%clk 00:13:55]} {[%emt 00:00:06]} 10.
Be2 {[%clk 00:14:03]} {[%emt 00:00:05]} Qd6 {[%clk 00:12:06]} {[%emt 00:01:55]}
11. O-O {[%clk 00:13:24]} {[%emt 00:00:42]} e5 {[%clk 00:12:06]} {[%emt
00:00:05]} 12. d4 {[%clk 00:13:28]} {[%emt 00:00:01]} exd4 {[%clk 00:09:45]}
{[%emt 00:02:27]} 13. exd4 {[%clk 00:13:25]} {[%emt 00:00:08]} O-O-O {[%clk
00:09:46]} {[%emt 00:00:04]} 14. dxc5 {[%clk 00:08:37]} {[%emt 00:04:53]} Qxc5
{[%clk 00:07:58]} {[%emt 00:01:53]} 15. Qc1 {[%clk 00:08:40]} {[%emt 00:00:02]}
Kb8 {[%clk 00:07:07]} {[%emt 00:00:57]} 16. b4 {[%clk 00:08:40]} {[%emt
00:00:04]} Nxb4 {[%clk 00:04:46]} {[%emt 00:02:26]} 17. Rb1 {[%clk 00:06:40]}
{[%emt 00:02:05]} Nd5 {[%clk 00:03:29]} {[%emt 00:01:23]} 18. Qb2 {[%clk
00:03:36]} {[%emt 00:03:09]} b5 {[%clk 00:03:33]} {[%emt 00:00:01]} 19. Bd4
{[%clk 00:03:21]} {[%emt 00:00:20]} Qa3 {[%clk 00:03:17]} {[%emt 00:00:21]} 20.
Qd2 {[%clk 00:03:02]} {[%emt 00:00:24]} Bb4 {[%clk 00:02:27]} {[%emt 00:00:55]}
21. Qg5 {[%clk 00:02:55]} {[%emt 00:00:12]} Bg6 {[%clk 00:02:31]} 22. Rb3
{[%clk 00:02:05]} {[%emt 00:00:55]} Qxa2 {[%clk 00:02:04]} {[%emt 00:00:33]} 23.
Rb2 {[%clk 00:02:07]} {[%emt 00:00:02]} Qa3 {[%clk 00:01:17]} {[%emt 00:00:53]}
24. Ne5 {[%clk 00:02:09]} {[%emt 00:00:03]} f6 {[%clk 00:01:08]} {[%emt
00:00:14]} 25. Nc6+ {[%clk 00:02:12]} {[%emt 00:00:02]} Kc7 {[%clk 00:00:41]}
{[%emt 00:00:32]} 26. Qc1 {[%clk 00:02:14]} {[%emt 00:00:03]} Bc3 {[%clk
00:00:24]} {[%emt 00:00:23]} 27. Bxc3 {[%clk 00:01:41]} {[%emt 00:00:38]} Nxc3
{[%clk 00:00:25]} {[%emt 00:00:03]} 28. Nxd8 {[%clk 00:00:53]} {[%emt
00:00:53]} Rxd8 {[%clk 00:00:30]} 29. Bf3 {[%clk 00:00:55]} {[%emt 00:00:04]}
Kb6 {[%clk 00:00:21]} {[%emt 00:00:13]} 30. Re1 {[%clk 00:00:37]} {[%emt
00:00:22]} Rd6 {[%clk 00:00:08]} {[%emt 00:00:18]} 31. h4 {[%clk 00:00:16]}
{[%emt 00:00:26]} h5 {[%clk 00:00:08]} {[%emt 00:00:05]} 32. Qf4 {[%clk
00:00:11]} {[%emt 00:00:10]} Qc5 {[%clk 00:00:07]} {[%emt 00:00:07]} 33. Rb3
{[%clk 00:00:11]} {[%emt 00:00:05]} Nd5 {[%clk 00:00:00]} {[%emt 00:00:07]} 1-0

[Event "Rapid Tournament (RAP)"]
[Site "Biel, Switzerland"]
[Date "2026.07.12"]
[Round "6.6"]
[White "Tureshbayev, Anuar"]
[Black "Aronyak, Ghosh"]
[Result "0-1"]
[TimeControl "15 + 5"]
[WhiteTitle "-"]
[BlackTitle "-"]
[WhiteFideId "651081709"]
[BlackFideId "25072846"]
[WhiteElo "2246"]
[BlackElo "2482"]

1. e4 {[%clk 00:15:08]} {[%emt 00:00:02]} c6 {[%clk 00:15:08]} {[%emt
00:00:04]} 2. d4 {[%clk 00:15:12]} d5 {[%clk 00:15:11]} {[%emt 00:00:01]} 3.
Nc3 {[%clk 00:15:16]} dxe4 {[%clk 00:15:08]} {[%emt 00:00:08]} 4. Nxe4 {[%clk
00:15:19]} {[%emt 00:00:01]} Nd7 {[%clk 00:14:59]} {[%emt 00:00:14]} 5. Ng5
{[%clk 00:15:23]} {[%emt 00:00:01]} Ngf6 {[%clk 00:14:44]} {[%emt 00:00:20]} 6.
Bd3 {[%clk 00:15:17]} {[%emt 00:00:11]} e6 {[%clk 00:14:19]} {[%emt 00:00:29]}
7. N1f3 {[%clk 00:15:17]} {[%emt 00:00:05]} Bd6 {[%clk 00:14:20]} {[%emt
00:00:04]} 8. O-O {[%clk 00:15:11]} {[%emt 00:00:12]} h6 {[%clk 00:13:50]}
{[%emt 00:00:35]} 9. Ne4 {[%clk 00:14:12]} {[%emt 00:01:04]} Nxe4 {[%clk
00:13:51]} {[%emt 00:00:04]} 10. Bxe4 {[%clk 00:14:15]} {[%emt 00:00:01]} Nf6
{[%clk 00:13:52]} {[%emt 00:00:04]} 11. Bd3 {[%clk 00:14:18]} {[%emt 00:00:02]}
Qc7 {[%clk 00:13:12]} {[%emt 00:00:45]} 12. Qe2 {[%clk 00:14:06]} {[%emt
00:00:17]} b6 {[%clk 00:13:05]} {[%emt 00:00:12]} 13. Ba6 {[%clk 00:13:19]}
{[%emt 00:00:52]} O-O {[%clk 00:12:38]} {[%emt 00:00:32]} 14. Bxc8 {[%clk
00:13:19]} {[%emt 00:00:05]} Raxc8 {[%clk 00:12:41]} {[%emt 00:00:01]} 15. c3
{[%clk 00:13:17]} {[%emt 00:00:06]} c5 {[%clk 00:12:37]} {[%emt 00:00:10]} 16.
dxc5 {[%clk 00:13:18]} {[%emt 00:00:04]} Qxc5 {[%clk 00:12:28]} {[%emt
00:00:15]} 17. Be3 {[%clk 00:13:18]} {[%emt 00:00:05]} Qh5 {[%clk 00:12:31]}
{[%emt 00:00:02]} 18. h3 {[%clk 00:13:13]} {[%emt 00:00:11]} Nd5 {[%clk
00:12:24]} {[%emt 00:00:11]} 19. Rad1 {[%clk 00:12:48]} {[%emt 00:00:29]} Rfd8
{[%clk 00:12:16]} {[%emt 00:00:13]} 20. Rd3 {[%clk 00:11:25]} {[%emt 00:01:27]}
Nxe3 {[%clk 00:09:43]} {[%emt 00:02:39]} 21. Qxe3 {[%clk 00:11:27]} {[%emt
00:00:03]} Qa5 {[%clk 00:08:48]} {[%emt 00:01:00]} 22. Rfd1 {[%clk 00:11:20]}
{[%emt 00:00:11]} Be7 {[%clk 00:08:52]} {[%emt 00:00:02]} 23. Rxd8+ {[%clk
00:10:13]} {[%emt 00:01:12]} Bxd8 {[%clk 00:08:47]} {[%emt 00:00:10]} 24. Qe4
{[%clk 00:08:29]} {[%emt 00:01:48]} Bf6 {[%clk 00:08:05]} {[%emt 00:00:48]} 25.
Qb7 {[%clk 00:08:24]} {[%emt 00:00:10]} Rf8 {[%clk 00:08:05]} {[%emt 00:00:06]}
26. a3 {[%clk 00:08:26]} {[%emt 00:00:02]} Qb5 {[%clk 00:07:45]} {[%emt
00:00:24]} 27. Rd2 {[%clk 00:08:24]} {[%emt 00:00:08]} a5 {[%clk 00:07:46]}
{[%emt 00:00:04]} 28. g3 {[%clk 00:07:32]} {[%emt 00:00:56]} a4 {[%clk
00:06:49]} {[%emt 00:01:02]} 29. Kg2 {[%clk 00:07:31]} {[%emt 00:00:05]} Bg5
{[%clk 00:05:30]} {[%emt 00:01:25]} 30. Nxg5 {[%clk 00:07:14]} {[%emt
00:00:23]} hxg5 {[%clk 00:05:34]} {[%emt 00:00:01]} 31. Qd7 {[%clk 00:07:05]}
{[%emt 00:00:13]} Qa6 {[%clk 00:05:21]} {[%emt 00:00:18]} 32. Rd4 {[%clk
00:05:25]} {[%emt 00:01:45]} b5 {[%clk 00:04:28]} {[%emt 00:00:59]} 33. Rb4
{[%clk 00:04:24]} {[%emt 00:01:05]} Qa8+ {[%clk 00:04:25]} {[%emt 00:00:09]} 34.
Kg1 {[%clk 00:04:22]} {[%emt 00:00:07]} Rd8 {[%clk 00:04:21]} {[%emt 00:00:09]}
35. Qxd8+ {[%clk 00:03:59]} {[%emt 00:00:28]} Qxd8 {[%clk 00:04:24]} {[%emt
00:00:02]} 36. Rxb5 {[%clk 00:04:03]} Qd3 {[%clk 00:04:03]} {[%emt 00:00:26]}
37. Kg2 {[%clk 00:03:57]} {[%emt 00:00:12]} Qxb5 {[%clk 00:04:06]} {[%emt
00:00:02]} 0-1

[Event "Rapid Tournament (RAP)"]
[Site "Biel, Switzerland"]
[Date "2026.07.12"]
[Round "6.7"]
[White "Haimovich, Tal"]
[Black "Acs, Peter"]
[Result "1/2-1/2"]
[TimeControl "15 + 5"]
[WhiteTitle "-"]
[BlackTitle "-"]
[WhiteFideId "2801698"]
[BlackFideId "708020"]
[WhiteElo "2245"]
[BlackElo "2474"]

1. Nf3 {[%clk 00:15:08]} {[%emt 00:00:01]} Nf6 {[%clk 00:14:50]} {[%emt
00:00:21]} 2. b3 {[%clk 00:15:11]} {[%emt 00:00:02]} d5 {[%clk 00:14:44]}
{[%emt 00:00:11]} 3. Bb2 {[%clk 00:15:12]} {[%emt 00:00:03]} c5 {[%clk
00:14:38]} {[%emt 00:00:11]} 4. e3 {[%clk 00:15:15]} {[%emt 00:00:03]} a6
{[%clk 00:14:39]} {[%emt 00:00:03]} 5. d4 {[%clk 00:14:56]} {[%emt 00:00:24]}
cxd4 {[%clk 00:14:20]} {[%emt 00:00:25]} 6. exd4 {[%clk 00:14:58]} {[%emt
00:00:03]} Bg4 {[%clk 00:14:15]} {[%emt 00:00:10]} 7. Nbd2 {[%emt 00:00:24]}
Nc6 {[%clk 00:14:00]} 8. a3 {[%clk 00:14:48]} {[%emt 00:00:16]} e6 {[%clk
00:14:01]} {[%emt 00:00:04]} 9. Bd3 {[%clk 00:14:35]} {[%emt 00:00:17]} Be7
{[%clk 00:13:13]} {[%emt 00:00:53]} 10. O-O {[%clk 00:14:33]} {[%emt 00:00:07]}
O-O {[%clk 00:12:50]} {[%emt 00:00:29]} 11. Re1 {[%clk 00:14:08]} {[%emt
00:00:29]} Qc7 {[%clk 00:12:32]} {[%emt 00:00:24]} 12. Qe2 {[%clk 00:13:36]}
{[%emt 00:00:36]} Rfd8 {[%clk 00:11:01]} {[%emt 00:01:36]} 13. Qe3 {[%clk
00:12:52]} {[%emt 00:00:49]} Bh5 {[%clk 00:10:04]} {[%emt 00:01:02]} 14. Rac1
{[%clk 00:11:23]} {[%emt 00:01:34]} Ng4 {[%clk 00:09:20]} {[%emt 00:00:49]} 15.
Qe2 {[%clk 00:11:03]} {[%emt 00:00:25]} Nxh2 {[%clk 00:09:12]} {[%emt
00:00:13]} 16. c4 {[%clk 00:10:05]} {[%emt 00:01:03]} Nxf3+ {[%clk 00:06:51]}
{[%emt 00:02:26]} 17. Nxf3 {[%clk 00:10:07]} {[%emt 00:00:03]} Bf6 {[%clk
00:06:25]} {[%emt 00:00:32]} 18. Qe3 {[%clk 00:08:45]} {[%emt 00:01:27]} Bxf3
{[%clk 00:04:08]} {[%emt 00:02:21]} 19. Qxf3 {[%clk 00:08:20]} {[%emt
00:00:30]} Qb6 {[%clk 00:03:47]} {[%emt 00:00:27]} 20. cxd5 {[%clk 00:08:00]}
{[%emt 00:00:24]} Rxd5 {[%clk 00:03:41]} {[%emt 00:00:11]} 21. Be4 {[%clk
00:07:47]} {[%emt 00:00:18]} Rd6 {[%clk 00:03:44]} {[%emt 00:00:02]} 22. Bxc6
{[%clk 00:04:29]} {[%emt 00:03:23]} bxc6 {[%clk 00:03:40]} {[%emt 00:00:10]} 23.
Rc4 {[%clk 00:04:27]} {[%emt 00:00:07]} h6 {[%clk 00:02:41]} {[%emt 00:01:04]}
24. Rec1 {[%clk 00:04:26]} {[%emt 00:00:06]} Rb8 {[%clk 00:02:27]} {[%emt
00:00:18]} 25. Rb4 {[%clk 00:02:45]} {[%emt 00:01:46]} Qc7 {[%clk 00:02:16]}
{[%emt 00:00:15]} 26. Rxb8+ {[%clk 00:02:45]} {[%emt 00:00:06]} Qxb8 {[%clk
00:02:20]} {[%emt 00:00:02]} 27. b4 {[%clk 00:02:43]} {[%emt 00:00:07]} Qb7
{[%clk 00:02:15]} {[%emt 00:00:10]} 28. Rc4 {[%clk 00:02:25]} {[%emt 00:00:23]}
Qd7 {[%clk 00:02:00]} {[%emt 00:00:19]} 29. Qe4 {[%clk 00:02:26]} {[%emt
00:00:04]} g6 {[%clk 00:01:54]} {[%emt 00:00:11]} 30. g3 {[%clk 00:02:30]}
{[%emt 00:00:01]} Rd5 {[%clk 00:01:56]} {[%emt 00:00:04]} 31. Qf4 {[%clk
00:02:20]} {[%emt 00:00:14]} Kg7 {[%clk 00:01:54]} {[%emt 00:00:07]} 32. Qb8
{[%clk 00:02:06]} {[%emt 00:00:19]} h5 {[%clk 00:01:17]} {[%emt 00:00:42]} 33.
Qb6 {[%clk 00:01:45]} {[%emt 00:00:26]} h4 {[%clk 00:01:09]} {[%emt 00:00:13]}
34. Qxc6 {[%clk 00:01:42]} {[%emt 00:00:08]} hxg3 {[%clk 00:00:54]} {[%emt
00:00:20]} 35. fxg3 {[%clk 00:01:45]} {[%emt 00:00:02]} Qa7 {[%clk 00:00:33]}
{[%emt 00:00:26]} 36. Kg2 {[%clk 00:01:43]} {[%emt 00:00:07]} Qb8 {[%clk
00:00:25]} {[%emt 00:00:13]} 37. Qc8 {[%clk 00:01:30]} {[%emt 00:00:18]} Qb6
{[%clk 00:00:22]} {[%emt 00:00:08]} 38. Qc7 {[%clk 00:01:26]} {[%emt 00:00:09]}
Qb5 {[%clk 00:00:11]} {[%emt 00:00:16]} 39. Qc6 {[%clk 00:01:22]} {[%emt
00:00:09]} Qb8 {[%clk 00:00:12]} {[%emt 00:00:04]} 40. Qc8 {[%clk 00:01:15]}
{[%emt 00:00:12]} Qxc8 {[%clk 00:00:08]} {[%emt 00:00:10]} 41. Rxc8 {[%clk
00:01:18]} {[%emt 00:00:01]} a5 {[%clk 00:00:11]} {[%emt 00:00:02]} 42. Rb8
{[%clk 00:01:06]} {[%emt 00:00:17]} axb4 {[%clk 00:00:14]} {[%emt 00:00:03]} 43.
Rxb4 {[%clk 00:01:07]} {[%emt 00:00:04]} Ra5 {[%clk 00:00:09]} {[%emt
00:00:10]} 44. a4 {[%clk 00:01:09]} {[%emt 00:00:03]} Kh7 {[%clk 00:00:08]}
{[%emt 00:00:06]} 45. Rc4 {[%clk 00:01:12]} Kg7 {[%clk 00:00:07]} {[%emt
00:00:06]} 1/2-1/2

[Event "Rapid Tournament (RAP)"]
[Site "Biel, Switzerland"]
[Date "2026.07.12"]
[Round "6.8"]
[White "Arjun, Kalyan"]
[Black "Rohrer, Christophe"]
[Result "1-0"]
[TimeControl "15 + 5"]
[WhiteTitle "-"]
[BlackTitle "-"]
[WhiteFideId "35018701"]
[BlackFideId "1326546"]
[WhiteElo "2390"]
[BlackElo "2202"]

1. e4 {[%clk 00:15:09]} e5 {[%clk 00:15:09]} {[%emt 00:00:02]} 2. Nf3 {[%clk
00:15:12]} {[%emt 00:00:01]} Nc6 {[%clk 00:15:12]} {[%emt 00:00:03]} 3. Bb5
{[%clk 00:15:13]} {[%emt 00:00:04]} a6 {[%clk 00:15:05]} {[%emt 00:00:12]} 4.
Ba4 {[%clk 00:15:16]} {[%emt 00:00:01]} d6 {[%clk 00:15:08]} {[%emt 00:00:02]}
5. c3 {[%clk 00:15:03]} {[%emt 00:00:18]} Bg4 {[%clk 00:15:11]} {[%emt
00:00:02]} 6. h3 {[%clk 00:14:44]} {[%emt 00:00:25]} Bh5 {[%clk 00:15:14]}
{[%emt 00:00:01]} 7. d4 {[%clk 00:14:24]} {[%emt 00:00:25]} b5 {[%clk
00:14:35]} {[%emt 00:00:44]} 8. Bb3 {[%clk 00:14:10]} {[%emt 00:00:19]} Nf6
{[%clk 00:14:07]} {[%emt 00:00:32]} 9. Bg5 {[%clk 00:13:42]} {[%emt 00:00:34]}
Be7 {[%clk 00:13:36]} {[%emt 00:00:36]} 10. Bxf6 {[%clk 00:13:05]} {[%emt
00:00:41]} Bxf6 {[%clk 00:13:38]} {[%emt 00:00:04]} 11. Bd5 {[%clk 00:13:07]}
{[%emt 00:00:03]} Qd7 {[%clk 00:13:03]} {[%emt 00:00:40]} 12. dxe5 {[%clk
00:10:27]} {[%emt 00:02:46]} dxe5 {[%clk 00:12:16]} {[%emt 00:00:52]} 13. g4
{[%clk 00:09:15]} {[%emt 00:01:16]} Bg6 {[%clk 00:11:47]} {[%emt 00:00:34]} 14.
Nbd2 {[%clk 00:08:25]} {[%emt 00:00:55]} h6 {[%clk 00:10:05]} {[%emt 00:01:47]}
15. Qe2 {[%clk 00:08:04]} {[%emt 00:00:25]} Rb8 {[%clk 00:09:35]} {[%emt
00:00:36]} 16. Rg1 {[%clk 00:07:48]} {[%emt 00:00:21]} Ne7 {[%clk 00:09:23]}
{[%emt 00:00:17]} 17. Bb3 {[%clk 00:07:51]} {[%emt 00:00:02]} c5 {[%clk
00:09:20]} {[%emt 00:00:09]} 18. Nf1 {[%clk 00:06:41]} {[%emt 00:01:14]} c4
{[%clk 00:08:57]} {[%emt 00:00:28]} 19. Bc2 {[%clk 00:06:42]} {[%emt 00:00:05]}
Nc6 {[%clk 00:08:21]} {[%emt 00:00:41]} 20. Ne3 {[%clk 00:06:35]} {[%emt
00:00:12]} Be7 {[%clk 00:07:35]} {[%emt 00:00:51]} 21. Rd1 {[%clk 00:06:28]}
{[%emt 00:00:11]} Qb7 {[%clk 00:07:18]} {[%emt 00:00:22]} 22. Nf5 {[%clk
00:06:19]} {[%emt 00:00:14]} Bxf5 {[%clk 00:06:20]} {[%emt 00:01:03]} 23. exf5
{[%clk 00:06:22]} {[%emt 00:00:02]} f6 {[%emt 00:01:50]} 24. Be4 {[%clk
00:06:24]} Qc7 {[%clk 00:04:30]} {[%emt 00:00:12]} 25. h4 {[%clk 00:06:22]}
{[%emt 00:00:08]} Rd8 {[%clk 00:04:25]} {[%emt 00:00:10]} 26. g5 {[%clk
00:05:30]} {[%emt 00:00:57]} hxg5 {[%clk 00:04:11]} {[%emt 00:00:19]} 27. hxg5
{[%clk 00:05:34]} {[%emt 00:00:01]} fxg5 {[%clk 00:03:39]} {[%emt 00:00:38]} 28.
Nxg5 {[%clk 00:05:37]} {[%emt 00:00:02]} Rxd1+ {[%clk 00:03:28]} {[%emt
00:00:16]} 29. Qxd1 {[%clk 00:05:40]} {[%emt 00:00:01]} Nd8 {[%clk 00:01:51]}
{[%emt 00:01:42]} 30. Nf3 {[%clk 00:03:41]} {[%emt 00:02:04]} Bf6 {[%clk
00:01:40]} {[%emt 00:00:16]} 31. Ke2 {[%clk 00:03:39]} {[%emt 00:00:06]} Nb7
{[%clk 00:01:08]} {[%emt 00:00:38]} 32. Rh1 {[%clk 00:02:44]} {[%emt 00:00:59]}
Rxh1 {[%clk 00:01:08]} {[%emt 00:00:06]} 33. Qxh1 {[%clk 00:02:48]} Nc5 {[%clk
00:00:53]} {[%emt 00:00:21]} 34. Nd2 {[%clk 00:02:30]} {[%emt 00:00:23]} Ke7
{[%clk 00:00:46]} {[%emt 00:00:12]} 35. Nf1 {[%clk 00:01:41]} {[%emt 00:00:54]}
Qd7 {[%clk 00:00:46]} {[%emt 00:00:06]} 36. Ne3 {[%clk 00:01:42]} {[%emt
00:00:04]} Nd3 {[%clk 00:00:30]} {[%emt 00:00:20]} 37. Nd5+ {[%clk 00:01:40]}
{[%emt 00:00:07]} Kd6 {[%clk 00:00:35]} 38. Qh8 {[%clk 00:00:53]} {[%emt
00:00:52]} Nf4+ {[%clk 00:00:18]} {[%emt 00:00:22]} 39. Nxf4 {[%clk 00:00:56]}
{[%emt 00:00:02]} exf4 {[%clk 00:00:22]} 40. Qf8+ {[%clk 00:00:40]} {[%emt
00:00:20]} Kc7 {[%clk 00:00:15]} {[%emt 00:00:13]} 41. Qc5+ {[%clk 00:00:40]}
{[%emt 00:00:04]} Kd8 {[%clk 00:00:12]} {[%emt 00:00:08]} 42. Qb6+ {[%clk
00:00:44]} {[%emt 00:00:02]} 1-0